[Event "European Women-ch 2023"]
[Site "Petrovac"]
[Date "2023.03.23"]
[Round "6.9"]
[White "Javakhishvili, Lela"]
[Black "Mkrtchyan, Mariam"]
[Result "0-1"]
[ECO "E30"]
[WhiteElo "2443"]
[BlackElo "2343"]
[Annotator "TA"]
[PlyCount "172"]
[EventDate "2023.03.15"]
[EventType "swiss"]
[EventCountry "MNE"]
[SourceTitle "playchess.com"]
[Source "ChessBase"]
[SourceQuality "1"]
[TimeControl "40/5400+30:1800+30"]

{[%evp 12,172,55,47,54,49,72,44,87,100,91,89,131,120,143,147,156,153,129,95,117,130,170,173,161,179,163,169,359,336,350,340,365,361,387,327,417,427,424,416,412,129,139,83,79,74,85,0,72,62,210,120,0,-4,0,0,0,0,0,0,0,0,13,-20,-8,-27,0,0,0,-4,0,-28,0,-59,0,-146,0,-57,0,0,0,0,0,0,0,0,0,0,0,0,0,0,0,-345,-355,-297,-270,-280,-186,-180,-69,-68,0,-177,-173,-331,-197,-178,-178,-213,0,-156,0,-189,-120,-251,-218,-223,-203,-195,-139,-173,-75,-345,-327,-353,-326,-322,-321,-750,-793,-768,-747,-777,-774,-767,-753,-749,-666,-1395,-846,-838,-838,-780,-767,-1416,-1356,-1207,-1206,-996,-896,-5433,-1977,-29982,-29983,-29983,-29983,-29983,-29984,-29984,-29984,-29982,-29982]} 1. d4 {[%emt 0:00:30]} Nf6 {[%emt 0:00:30]} 2. c4 {[%emt 0:00:30]} e6 {[%emt 0:00:30]} 3. Nc3 {[%emt 0:00:30]} d5 {[%emt 0:00:30]} 4. Bg5 {[%emt 0:00:30]} Bb4 {[%emt 0:00:30]} 5. e3 {[%emt 0:00:30]} h6 {[%emt 0:00:30]} 6. Bh4 {[%emt 0:00:30]} g5 {[%emt 0:00:30]} 7. Bg3 $1 {[%emt 0:00:30]} Ne4 8. Nge2 {[%emt 0:20:04]} h5 {[%emt 0:14:57]} 9. h4 {[%emt 0:01:20]} g4 {[%emt 0:09:31] White is slightly better.} (9... dxc4 10. Be5 Rh7 11. Qc2 $16) 10. Be5 {[%emt 0:04:18]} f6 {[%emt 0:01:53]} 11. Bf4 {[%emt 0:00:38]} c6 {[%emt 0:05:20]} 12. a3 {[%emt 0:12:24]} Be7 {[%emt 0:03:46]} 13. Nxe4 {[%emt 0:04:44]} dxe4 {[%emt 0:00:05]} 14. Qc2 {[%emt 0:01:22]} f5 {[%emt 0:00:48]} 15. Bg3 {[%emt 0:03:09]} Nd7 {[%emt 0:03:27]} 16. O-O-O {[%emt 0:05:27]} Nf8 {[%emt 0:03:29] [#]} 17. f3 $1 {[%emt 0:01:42][%mdl 512]} exf3 {[%emt 0:03:42]} (17... gxf3 18. gxf3 exf3 19. Nf4) 18. gxf3 {[%emt 0:00:07]} Bd6 {[%emt 0:02:23]} 19. Nf4 {[%emt 0:03:10]} Kf7 $2 {[%emt 0:12:49]} (19... Rh6 20. c5 Bc7) 20. c5 $18 {[%emt 0:03:48]} Bb8 {[%emt 0:08:27]} (20... Bxf4 $2 21. Bxf4 Ke8 22. Bg2) 21. Bc4 {[%emt 0:02:17]} Qf6 {[%emt 0:00:07]} 22. Rhf1 {[%emt 0:09:18]} Kg7 {[%emt 0:06:02]} 23. e4 {[%emt 0:00:27][%cal Be3e4,Be4e5][%mdl 32]} Ng6 {[%emt 0:02:10]} 24. e5 {[%emt 0:05:08]} Qe7 {[%emt 0:03:40]} 25. fxg4 {[%emt 0:00:58]} hxg4 {[%emt 0:01:04]} 26. h5 $2 {[%emt 0:01:54]} (26. Bxe6 $18 Bxe6 27. Nxe6+ Qxe6 28. Rxf5) 26... Nxf4 $16 {[%emt 0:01:17]} 27. Bxf4 {[%emt 0:00:46]} (27. h6+ $142 $1 Kh7 28. Rxf4 (28. Bxf4 b6 $16)) 27... Bc7 {[%emt 0:01:59]} (27... Rxh5 $2 28. Rh1 Qe8 29. Qg2 $18) 28. Rg1 {[%emt 0:02:10][%cal Og1g4]} Rg8 {[%emt 0:01:12]} 29. h6+ {[%emt 0:01:00]} (29. Kb1 $16) 29... Kh7 {[%emt 0:00:30]} (29... Kh8 $11) 30. Be2 $1 {[%emt 0:00:28]} Kh8 {[%emt 0:04:22] [#]} ({Black should play} 30... Qh4 $14) 31. h7 $1 {[%emt 0:01:19][%mdl 512]} Rg7 {[%emt 0:00:03]} 32. Rh1 {[%emt 0:00:39]} Bd7 {[%emt 0:00:24]} 33. Rh6 {[%emt 0:00:37]} Re8 {[%emt 0:03:55]} 34. Rdh1 {[%emt 0:00:36]} Bd8 {[%emt 0:01:01]} 35. Kb1 {[%emt 0:00:29]} Qf7 {[%emt 0:01:33] Dodges Rf6} 36. Qd2 {[%emt 0:02:04]} Rg6 {[%emt 0:01:05] Black is weak on the dark squares} 37. R6h5 {[%emt 0:01:18]} Bc8 {[%emt 0:02:09]} 38. Bd3 {[%emt 0:02:00]} Rf8 {[%emt 0:01:51]} 39. Qc3 {[%emt 0:01:10]} Qd7 {[%emt 0:01:10]} 40. Bc4 {[%emt 0:00:00]} Rf7 {[%emt 0:00:00]} 41. b4 {[%emt 0:10:59]} a6 {[%emt 0:04:53]} 42. a4 {[%emt 0:01:26]} (42. Bb3 $11) 42... Qe8 {[%emt 0:03:33]} (42... b5 $15 43. axb5 cxb5) 43. b5 {[%emt 0:02:00]} Rgg7 {[%emt 0:00:22] Really sharp!} (43... cxb5 $17 44. axb5 axb5) 44. Bh6 {[%emt 0:04:45]} (44. bxa6 $11 bxa6 45. Kc2) 44... Rxh7 {[%emt 0:09:09]} (44... cxb5 $15 45. Bxg7+ Rxg7 46. axb5 axb5) 45. bxa6 $11 {[%emt 0:00:15]} bxa6 {[%emt 0:00:03]} 46. Ka2 {[%emt 0:00:52]} Ra7 {[%emt 0:02:15]} 47. Qb2 {[%emt 0:01:23]} Rac7 {[%emt 0:04:40]} 48. Qd2 {[%emt 0:02:53]} Qg6 {[%emt 0:00:33]} 49. Qf4 {[%emt 0:03:03]} Rcf7 {[%emt 0:02:53]} 50. R5h2 {[%emt 0:02:11]} Be7 {[%emt 0:01:30]} (50... g3 $2 51. Rg2 Qg4 52. Qxg3 Qxg3 53. Rxg3 $18) 51. Qg3 {[%emt 0:03:13]} Bg5 {[%emt 0:01:14]} 52. Bf8 {[%emt 0:03:45][%mdl 8192]} Rxh2+ $19 {[%emt 0:02:06]} 53. Rxh2+ {[%emt 0:00:02]} Rh7 {[%emt 0:00:45]} 54. Rb2 {[%emt 0:00:02]} Qe8 {[%emt 0:01:44]} 55. Bd6 {[%emt 0:00:09]} Rb7 {[%emt 0:00:44]} (55... Kg7 $19 {...Qh5 is the strong threat.} 56. Qg2 Kg6) 56. Rh2+ $1 $15 {[%emt 0:03:32]} Rh7 {[%emt 0:00:03]} (56... Kg8 $1 $15) 57. Rb2 $1 $19 {[%emt 0:00:10]} Kg7 {[%emt 0:02:42]} 58. Rb8 $2 {[%emt 0:00:35]} (58. Qg2) 58... Qd7 {[%emt 0:00:05]} (58... Qh8 $142 59. Rb2 Rh1) 59. Bf1 {[%emt 0:00:43]} Kg6 {[%emt 0:00:34]} 60. Bg2 {[%emt 0:02:09]} Bd2 $2 {[%emt 0:00:13]} ({Better is} 60... Qd8 $19 {[%cal Od8a5] Strongly threatening ...Qa5!} 61. Bxc6 Rh3) 61. Qf2 $2 {[%emt 0:01:39]} (61. Be4 $1 $11) 61... Bg5 {[%emt 0:00:24]} 62. Qg3 {[%emt 0:00:38] Wards off Rh2} Rh8 {[%emt 0:00:36]} (62... Qd8 $19 {[%cal Od8a5] And now ...Qa5! would win.} 63. Rb6 (63. Bxc6 Qa5 $19) 63... Bd7 64. Rxa6 Bh4) 63. Qb3 {[%emt 0:00:22]} (63. Rb2 $17 {was called for.}) 63... Bf4 {[%emt 0:00:00]} 64. Qc4 {[%emt 0:01:32][%cal Od4d5]} Rh2 {[%emt 0:00:02]} 65. Rb2 {[%emt 0:00:02][%cal Od4d5]} Kg5 {[%emt 0:01:29]} (65... Qd8 $19 66. Qd3 (66. Bxc6 Qh4 $17) 66... Qh4) 66. a5 {[%emt 0:00:56]} Bg3 {[%emt 0:00:29]} (66... Qd8 $19 {is more deadly.} 67. Qb4 Bc1) 67. Qa4 $2 {[%emt 0:00:08][%mdl 8192] [#]} (67. Qd3 $17 {keeps fighting.} Bf4 68. Qc3) 67... f4 $1 {[%emt 0:00:59][%cal Bf5f4,Bf4f3][%mdl 32]} 68. Bxc6 {[%emt 0:00:15]} Rxb2+ {[%emt 0:00:04]} 69. Kxb2 {[%emt 0:00:03]} Qh7 {[%emt 0:00:35]} 70. Qc2 $2 {[%emt 0:01:21]} (70. Qd1 Bb7 71. Ba4) 70... Qxc2+ {[%emt 0:01:03]} 71. Kxc2 {[%emt 0:00:02][%mdl 4096] Endgame KBB-KBB} f3 {[%emt 0:00:16]} 72. Kd3 {[%emt 0:00:58]} Kf4 {[%emt 0:00:30]} 73. Bf8 {[%emt 0:01:20]} Be1 {[%emt 0:00:33] White must now prevent ...g3.} 74. Bh6+ {[%emt 0:00:28]} Kg3 {[%emt 0:00:02]} 75. Ke3 {[%emt 0:02:02]} Bxa5 {[%emt 0:01:11]} 76. Bf4+ {[%emt 0:00:03]} Kg2 {[%emt 0:00:13]} 77. Be4 {[%emt 0:01:30]} Be1 {[%emt 0:00:24]} 78. d5 {[%emt 0:00:26]} Bf2+ {[%emt 0:00:15]} 79. Kd3 {[%emt 0:00:06]} exd5 {[%emt 0:00:39]} 80. Bxd5 {[%emt 0:00:10]} Bxc5 {[%emt 0:00:04] Threatens to win with ...Kh3.} 81. Bg5 {[%emt 0:01:43]} Kg3 {[%emt 0:01:11]} (81... Kh3 $142 82. Be3 f2 {[%mdl 64] X-Ray Attack} 83. Bxf2 Bxf2) 82. Be3 {[%emt 0:00:22]} Bf5+ {[%emt 0:00:20] Black mates.} 83. Kd2 {[%emt 0:00:02]} Bxe3+ {[%emt 0:00:31][%mdl 64] Remove Defender} 84. Kxe3 {[%emt 0:00:01]} f2 {[%emt 0:00:07]} 85. Bc4 {[%emt 0:00:16]} Kg2 {[%emt 0:00:12]} 86. Kf4 {[%emt 0:00:30]} Bc8 {[%emt 0:00:08] What a bad dream for White.   Weighted Error Value: White=0.30/Black=0.34} ({Weaker is} 86... f1=B 87. Bxf1+ Kxf1 88. Kxf5 $15) 0-1

[Event "European Women-ch 2023"]
[Site "Petrovac"]
[Date "2023.03.23"]
[Round "6.9"]
[White "Brunello, Marina"]
[Black "Kubicka, Anna"]
[Result "1/2-1/2"]
[ECO "B12"]
[WhiteElo "2346"]
[BlackElo "2211"]
[Annotator "TA"]
[PlyCount "98"]
[EventDate "2023.03.15"]
[EventType "swiss"]
[EventCountry "MNE"]
[SourceTitle "playchess.com"]
[Source "ChessBase"]
[SourceQuality "1"]
[TimeControl "40/5400+30:1800+30"]

{[%evp 12,98,12,3,25,8,16,0,0,0,0,-3,0,-13,0,-10,4,0,16,19,15,-16,-17,-29,-18,-49,-11,-8,-8,-10,-8,-8,-8,-8,0,0,16,14,14,16,27,11,16,0,0,0,0,0,20,29,23,9,17,10,19,0,0,0,0,0,0,0,0,0,0,0,0,0,0,0,0,0,0,0,0,0,0,0,0,0,0,0,0,0,0,0,0,0,0]} 1. e4 {[%emt 0:00:03]} c6 {[%emt 0:00:09]} 2. d4 {[%emt 0:00:09]} d5 {[%emt 0:00:06]} 3. e5 {[%emt 0:00:03]} Bf5 {[%emt 0:00:20]} 4. h4 {[%emt 0:01:27]} h5 {[%emt 0:00:07]} 5. Bd3 {[%emt 0:00:11]} Bxd3 {[%emt 0:00:06]} 6. Qxd3 {[%emt 0:00:04]} e6 {[%emt 0:00:08]} 7. Nf3 {[%emt 0:00:03]} Qa5+ {[%emt 0:00:25]} 8. Nbd2 {[%emt 0:00:20]} Ne7 {[%emt 0:00:37]} 9. O-O {[%emt 0:00:26][%cal Ob2b4]} Qa6 {[%emt 0:01:46]} 10. c4 {[%emt 0:05:44]} Nd7 {[%emt 0:01:19]} 11. b3 {[%emt 0:03:06]} Nf5 {[%emt 0:00:29]} 12. Re1 {[%emt 0:02:40]} Be7 {[%emt 0:01:30]} 13. g3 {[%emt 0:00:06]} Rd8 {[%emt 0:03:08]} 14. Bb2 {[%emt 0:05:58]} dxc4 {[%emt 0:27:16]} 15. bxc4 {[%emt 0:08:51]} b5 {[%emt 0:07:05]} 16. Qe4 {[%emt 0:15:33]} bxc4 {[%emt 0:09:33]} 17. Rec1 {[%emt 0:00:22]} O-O {[%emt 0:02:17]} 18. Nxc4 {[%emt 0:14:32]} c5 {[%emt 0:02:22]} 19. Ne3 {[%emt 0:15:17]} Nxe3 {[%emt 0:04:39]} 20. Qxe3 {[%emt 0:00:04]} Rb8 {[%emt 0:08:30]} 21. Bc3 {[%emt 0:01:00]} Rfc8 {[%emt 0:01:44]} 22. dxc5 {[%emt 0:03:21]} Bxc5 {[%emt 0:03:50]} 23. Bd4 {[%emt 0:00:04][%cal Rd4c5]} Bxd4 {[%emt 0:01:12]} (23... Ba3 $5 {[%cal Ra3c1]} 24. Rd1 Rc7 $11) 24. Qxd4 {[%emt 0:00:06]} Nb6 {[%emt 0:01:19]} 25. Ng5 {[%emt 0:04:18]} Rc4 {[%emt 0:04:58]} 26. Qd1 {[%emt 0:07:22]} g6 {[%emt 0:00:06]} (26... Rxc1 $2 27. Rxc1 g6 28. Rc7 Qxa2 29. Rxf7 $18 (29. Qf3 Qb1+ 30. Kg2 Qf5 $16)) 27. Qd6 {[%emt 0:00:44] [#] Hoping for Rxc4.} (27. Rxc4 {simplifies} Nxc4 28. Qd4 Qb5 29. Re1) 27... Rbc8 {[%emt 0:05:33]} 28. Rxc4 {[%emt 0:02:43]} Qxc4 {[%emt 0:00:05]} 29. Rd1 {[%emt 0:00:17] aiming for Qe7.} Nd5 {[%emt 0:04:01] Repels Qe7} 30. Rb1 {[%emt 0:04:14]} Qc7 {[%emt 0:02:13]} (30... Qxa2 31. Rb8 Rxb8 32. Qxb8+ Kg7 33. Qb7 (33. Qe8 Qb1+ 34. Kg2 Qb7 $17) (33. Qe8 Qb1+ 34. Kh2 Qb7 $17)) 31. Qxc7 {[%emt 0:01:07]} Rxc7 $11 {[%emt 0:00:01][%mdl 4096] Endgame KRN-KRN. The position is equal.} 32. Rb8+ {[%emt 0:00:13]} Kg7 {[%emt 0:00:05]} 33. a4 {[%emt 0:01:40]} Nb6 {[%emt 0:00:57]} 34. f4 {[%emt 0:01:35]} Nxa4 {[%emt 0:01:25]} 35. Ne4 {[%emt 0:00:11]} Nb6 {[%emt 0:01:13]} 36. Nd6 {[%emt 0:02:18] [#] Strongly threatening Ne8+.} Kh7 {[%emt 0:03:45]} 37. Nb5 {[%emt 0:01:34]} Rc5 {[%emt 0:03:41]} 38. Nxa7 {[%emt 0:00:29]} Nd5 {[%emt 0:00:04]} 39. Rb3 {[%emt 0:01:02]} Rc2 {[%emt 0:00:48]} 40. Nb5 {[%emt 0:00:00]} Kg7 {[%emt 0:00:00]} 41. Nd6 {[%emt 0:01:23]} Rc3 {[%emt 0:03:20]} 42. Rxc3 {[%emt 0:00:48]} Nxc3 {[%emt 0:00:06] KN-KN} 43. Kf2 {[%emt 0:00:19]} Kf8 {[%emt 0:00:26]} 44. Ke3 {[%emt 0:00:03]} Ke7 {[%emt 0:00:37]} 45. Kd3 {[%emt 0:00:25]} Nd5 {[%emt 0:00:26]} 46. Ne4 {[%emt 0:00:14]} Nb4+ {[%emt 0:01:04]} 47. Kc4 {[%emt 0:00:26]} Nc2 {[%emt 0:00:10]} 48. Kc5 {[%emt 0:00:10]} Ne3 {[%emt 0:00:18]} 49. Kd4 {[%emt 0:01:19]} Nf5+ {[%emt 0:00:10] Weighted Error Value: White=0.05 (flawless) /Black=0.05 (flawless)} 1/2-1/2

[Event "European Women-ch 2023"]
[Site "Petrovac"]
[Date "2023.03.23"]
[Round "6.9"]
[White "Hrescak, Ivana"]
[Black "Ismayil, Malak"]
[Result "1-0"]
[ECO "E04"]
[WhiteElo "2127"]
[BlackElo "2011"]
[Annotator "TA"]
[PlyCount "171"]
[EventDate "2023.03.15"]
[EventType "swiss"]
[EventCountry "MNE"]
[SourceTitle "playchess.com"]
[Source "ChessBase"]
[SourceQuality "1"]
[TimeControl "40/5400+30:1800+30"]

{[%evp 17,171,33,24,21,35,23,36,22,22,20,25,24,85,86,80,84,87,90,83,70,75,76,124,116,127,87,139,65,120,119,141,119,116,67,73,37,72,62,154,0,0,0,2,0,31,22,295,77,77,75,244,244,239,239,380,372,376,256,248,249,425,383,400,200,197,193,197,0,16,20,352,340,340,352,352,344,332,316,352,351,535,537,605,495,488,483,488,418,796,488,488,488,488,481,481,481,481,412,434,351,763,741,1142,966,2172,2022,1174,1596,5181,4762,3873,1050,1328,1429,29970,2810,4134,4409,29973,29974,29974,29974,29984,29985,29985,29986,29986,29983,29983,29984,29984,29985,29985,29986,29986,29987,29987,29988,29988,29988,29988,29989,29989,29990,29990,29991,29992,29993,29997,29992,29995,29996,29997,29998,29998,29999]} 1. d4 {[%emt 0:00:04]} Nf6 {[%emt 0:00:04]} 2. c4 {[%emt 0:00:15]} e6 {[%emt 0:00:03]} 3. g3 {[%emt 0:00:55]} d5 {[%emt 0:00:35]} 4. Bg2 {[%emt 0:00:47]} dxc4 {[%emt 0:00:37]} 5. Nf3 {[%emt 0:00:29]} Nc6 {[%emt 0:00:20]} 6. Qa4 {[%emt 0:00:46]} Bb4+ {[%emt 0:00:12]} 7. Bd2 {[%emt 0:00:14]} Nd5 {[%emt 0:00:11]} 8. Bxb4 {[%emt 0:00:11]} Ndxb4 {[%emt 0:00:05]} 9. O-O {[%emt 0:01:10]} Rb8 {[%emt 0:04:17]} 10. Na3 {[%emt 0:27:20] E04: Open Catalan: 5 Nf3.} O-O {[%emt 0:03:33]} 11. Qb5 $1 {[%emt 0:01:17]} b6 {[%emt 0:00:54]} 12. Qxc4 {[%emt 0:01:12] White is slightly better.} Ba6 {[%emt 0:02:02]} 13. Nb5 {[%emt 0:00:09]} Qd5 {[%emt 0:04:57] 13...Qe8 deserves study.} 14. Qxd5 {[%emt 0:00:09]} exd5 {[%emt 0:05:01]} (14... Nxd5 $11 {remains equal.} 15. a4 Bb7) 15. Nc3 $1 $16 {[%emt 0:19:29]} Rfe8 {[%emt 0:01:09]} 16. Rfd1 {[%emt 0:02:11]} Ne7 {[%emt 0:19:29]} (16... Bxe2 $2 17. Nxe2 Rxe2 18. a3 $18) 17. a3 {[%emt 0:07:11]} Nbc6 {[%emt 0:00:07]} 18. b4 {[%emt 0:03:32][%cal Bb2b4,Bb4b5,Bb5c6][%mdl 32] [#]} Bc8 $146 {[%emt 0:05:37]} ({Predecessor:} 18... Bb7 19. Rdc1 Nf5 20. e3 Nce7 21. b5 Nd6 22. Ne5 Red8 23. Rc2 f6 24. Nd3 Ne4 {1-0 Huzman,A (2589)-Cornette,M (2521) Canadian op Montreal 2008 (4)}) 19. Rac1 {[%emt 0:05:39][%cal Oc3d5]} Be6 {[%emt 0:04:32]} ({Better is} 19... Rd8) 20. Ng5 {[%emt 0:02:00]} Nd8 {[%emt 0:01:49]} 21. b5 {[%emt 0:05:31] White is much more active. The black rooks are badly placed.} Nb7 {[%emt 0:05:15]} (21... Bg4 $142) 22. Na2 {[%emt 0:03:14]} (22. Nxe6 $16 fxe6 23. e4) 22... Nd6 {[%emt 0:01:14]} (22... Bd7 $1 $14) 23. a4 {[%emt 0:00:53]} c6 {[%emt 0:20:15]} 24. bxc6 {[%emt 0:01:28]} Rbc8 {[%emt 0:01:23]} 25. Nb4 {[%emt 0:03:05]} (25. Nxe6 $16 fxe6 26. Nc3) 25... a5 $14 {[%emt 0:00:45]} 26. Nd3 $36 {[%emt 0:00:15][%mdl 2048] White is pushing.} Nxc6 {[%emt 0:00:55][%cal Be7c6,Bc6b4,Bb4c2][%mdl 32]} 27. Nf4 {[%emt 0:02:36]} (27. Nxe6 {simplifies} fxe6 28. Nf4 Nb4 29. Rxc8 Nxc8 30. Rc1) 27... Bd7 {[%emt 0:10:23]} (27... Nb4 $14) 28. Bxd5 $2 {[%emt 0:01:32]} (28. Nxd5 $16 Nxd4 29. Rxc8 Nxe2+ 30. Kf1 Nxc8 31. Nc7 Bxa4 32. Rd2) 28... Nb4 {[%emt 0:00:15]} 29. Bb3 {[%emt 0:01:31]} b5 {[%emt 0:01:13]} 30. axb5 {[%emt 0:00:57] Hoping for Rxc8.} Bxb5 {[%emt 0:00:00]} (30... h6 $5 31. Nxf7 (31. Rxc8 Rxc8 32. Nxf7 Nxf7 $11) 31... Nxf7 $11) 31. Rc5 {[%emt 0:01:24][%cal Og5f7,Bc1c5,Bc5b5,Bb5b7][%mdl 32] aiming for Nxf7!} a4 $2 {[%emt 0:03:16][%mdl 8192] [#]} (31... Rb8 $1 $11) 32. Bxf7+ $2 {[%emt 0:02:43]} Nxf7 $16 {[%emt 0:00:51]} 33. Rxb5 {[%emt 0:00:08]} Nc2 $2 {[%emt 0:00:22]} (33... Rb8 $16 34. Rxb8 Rxb8 35. Nxf7 Kxf7) 34. Nxf7 $18 {[%emt 0:01:13]} Kxf7 {[%emt 0:00:02]} 35. Rb7+ {[%emt 0:02:18]} Kf8 {[%emt 0:00:07]} (35... Re7 $142 36. Rxe7+ Kxe7) 36. d5 {[%emt 0:00:25]} Re7 {[%emt 0:01:24]} 37. Rb2 {[%emt 0:02:01]} (37. Ne6+ Kf7 38. Rb6 Ra7 $18) 37... a3 {[%emt 0:00:07]} 38. Ra2 {[%emt 0:00:07] Threatens to win with d6.} Rb7 $2 {[%emt 0:00:47]} (38... Ra7 39. Nd3 (39. Rc1 Ke7 $14) 39... Ke7 40. d6+ Kf6) 39. Nd3 {[%emt 0:02:02]} Rb3 {[%emt 0:01:54]} 40. e4 {[%emt 0:00:00]} (40. d6 $142) 40... Rcc3 {[%emt 0:00:00]} 41. Ne5 {[%emt 0:21:24] Black must now prevent d6.} Nb4 {[%emt 0:08:37]} 42. Rad2 {[%emt 0:00:33]} ({White must play} 42. Raa1 $18) 42... a2 {[%emt 0:00:29]} 43. d6 {[%emt 0:01:12][%cal Bd5d6,Bd6d7][%mdl 32] d7 would kill now.} Rc8 $2 {[%emt 0:00:04][%mdl 8192] White stays focused until the end.} (43... Rd3 $1 $11 {and Black stays safe.} 44. Nxd3 (44. Rxd3 Nxd3 45. Nxd3 Rb1 $15) 44... Rb1) 44. d7 {[%emt 0:03:43]} Rd8 {[%emt 0:00:08] [#] Strongly threatening ...Rb1.} 45. Rxa2 $3 {[%emt 0:02:25][%mdl 576] Deflection} Nxa2 {[%emt 0:00:26]} 46. Nc6 {[%emt 0:00:05]} Rxd7 {[%emt 0:01:08]} (46... Nc3 $2 47. Nxd8 Rb8 48. Nc6 Nxd1 49. e5 $18) 47. Rxd7 {[%emt 0:00:04][%mdl 4096] Endgame And now e5 would win. KRN-KRN} Rb1+ {[%emt 0:03:02]} 48. Kg2 {[%emt 0:00:06]} Re1 {[%emt 0:00:07]} (48... Rb6 {was worth a try.} 49. Ne5 Rb2) 49. e5 {[%emt 0:01:07]} h5 {[%emt 0:02:54]} 50. h4 {[%emt 0:01:26]} Nc3 {[%emt 0:01:07]} 51. Rd3 {[%emt 0:01:48]} Na4 {[%emt 0:00:52]} 52. Rf3+ {[%emt 0:00:36]} Kg8 {[%emt 0:00:27]} (52... Ke8 $142 53. Rf5 Kd7) 53. Rf5 {[%emt 0:00:17] Threatening mate with Ne7+.} g6 {[%emt 0:00:16]} 54. Ne7+ {[%emt 0:00:40]} Kg7 {[%emt 0:00:27]} 55. Rg5 {[%emt 0:00:50]} Nc5 {[%emt 0:00:04]} 56. Rxg6+ {[%emt 0:01:57]} ({Weaker is} 56. Nxg6 Ne4 $18) 56... Kf7 {[%emt 0:00:01]} 57. Rc6 $1 {[%emt 0:00:25]} Nd3 {[%emt 0:00:50]} 58. Ng6 {[%emt 0:01:08] Rf6+ is the strong threat.} Re2 $2 {[%emt 0:00:33]} (58... Nxe5 59. Nxe5+ Rxe5) 59. Rf6+ {[%emt 0:00:16]} Kg7 {[%emt 0:00:15]} 60. Nf4 {[%emt 0:01:16]} Rxf2+ {[%emt 0:00:01]} 61. Kg1 {[%emt 0:00:05]} Rd2 {[%emt 0:01:04]} 62. Nxh5+ {[%emt 0:01:01]} Kh7 {[%emt 0:00:24]} 63. e6 {[%emt 0:00:14]} Re2 {[%emt 0:01:00]} 64. Kf1 {[%emt 0:00:50]} Re1+ {[%emt 0:00:51]} 65. Kg2 {[%emt 0:00:01]} Nc5 {[%emt 0:00:33]} 66. Nf4 {[%emt 0:00:20]} (66. Rf7+ $142 Kh6 67. Nf4 Nxe6 68. Rf6+ Kg7 69. Rxe6 Rd1 70. g4 Rc1 71. g5) 66... Re3 {[%emt 0:00:31]} 67. g4 {[%emt 0:00:31]} Ne4 {[%emt 0:00:10]} 68. Rf7+ {[%emt 0:00:20] White mates.} Kg8 {[%emt 0:00:03]} 69. Nh5 {[%emt 0:00:47]} Re2+ {[%emt 0:00:49]} 70. Kf3 {[%emt 0:00:51]} Re1 {[%emt 0:00:02]} 71. Kf4 {[%emt 0:00:26]} Re2 {[%emt 0:00:08]} 72. Nf6+ {[%emt 0:00:43]} Nxf6 {[%emt 0:00:02]} 73. Rxf6 {[%emt 0:00:02] KR-KR} Kg7 {[%emt 0:00:08]} 74. Rf7+ {[%emt 0:00:30]} Kg6 {[%emt 0:00:18]} 75. h5+ {[%emt 0:00:26]} Kh6 {[%emt 0:00:01]} 76. Rf6+ {[%emt 0:00:50]} Kg7 {[%emt 0:00:05]} 77. g5 {[%emt 0:00:29]} Rf2+ {[%emt 0:00:06]} 78. Ke5 {[%emt 0:00:06]} Re2+ {[%emt 0:00:04]} 79. Kd6 {[%emt 0:00:09]} Rd2+ {[%emt 0:00:02]} 80. Ke7 {[%emt 0:00:07]} Rd5 {[%emt 0:00:13]} 81. Rg6+ {[%emt 0:01:01]} Kh7 {[%emt 0:00:20]} 82. Kf6 {[%emt 0:00:49]} Rd6 {[%emt 0:00:12]} 83. Rg7+ {[%emt 0:00:23]} Kh8 {[%emt 0:00:01]} 84. Rd7 {[%emt 0:00:27]} Ra6 {[%emt 0:00:14]} 85. Rd8+ {[%emt 0:00:28]} Kh7 {[%emt 0:00:05]} 86. g6+ {[%emt 0:00:13] Weighted Error Value: White=0.40/Black=0.44} 1-0

[Event "European Women-ch 2023"]
[Site "Petrovac"]
[Date "2023.03.23"]
[Round "6.10"]
[White "Garcia Martin, Marta"]
[Black "Arabidze, Meri"]
[Result "0-1"]
[ECO "B22"]
[WhiteElo "2306"]
[BlackElo "2433"]
[Annotator "TA"]
[PlyCount "60"]
[EventDate "2023.03.15"]
[EventType "swiss"]
[EventCountry "MNE"]
[SourceTitle "playchess.com"]
[Source "ChessBase"]
[SourceQuality "1"]
[TimeControl "40/5400+30:1800+30"]

{[%evp 15,60,17,23,0,21,0,0,0,26,42,29,14,12,0,13,0,48,49,51,56,64,58,82,77,84,39,44,0,0,0,0,0,0,-6,-8,-23,-16,-7,-15,-87,-23,-33,0,-205,-183,-695,-587]} 1. e4 {[%emt 0:00:30]} c5 {[%emt 0:00:30]} 2. Nf3 {[%emt 0:00:30]} e6 {[%emt 0:00:30]} 3. c3 {[%emt 0:00:30]} Nf6 {[%emt 0:00:30]} 4. e5 {[%emt 0:00:30]} Nd5 {[%emt 0:00:30]} 5. d4 {[%emt 0:00:30]} cxd4 {[%emt 0:00:30]} 6. cxd4 {[%emt 0:00:30]} d6 {[%emt 0:00:30]} 7. Bc4 {[%emt 0:00:30]} Nb6 {[%emt 0:00:30]} 8. Bd3 {[%emt 0:00:30]} Nc6 {[%emt 0:00:30][%cal Bb8c6,Bc6b4,Bb4d5][%mdl 32]} 9. exd6 {[%emt 0:00:30]} Bxd6 {[%emt 0:00:30]} 10. O-O {[%emt 0:00:30]} Nb4 11. Be4 {The position is equal.} N4d5 {[%emt 0:21:58]} 12. Nc3 {[%emt 0:18:11]} O-O {[%emt 0:04:30]} 13. a4 {[%emt 0:16:51]} a5 {[%emt 0:06:13]} 14. Ne5 {[%emt 0:14:27]} Bd7 {[%emt 0:12:00]} 15. Qd3 {[%emt 0:07:07]} f5 {[%emt 0:04:05]} (15... g6 $1 $11 {is more appropriate.}) 16. Bxd5 $14 {[%emt 0:02:30]} Nxd5 {[%emt 0:02:09]} 17. Nxd5 {[%emt 0:01:39]} exd5 {[%emt 0:00:13]} 18. Bf4 {[%emt 0:02:11]} Ra6 {[%emt 0:03:12]} 19. Rfe1 {[%emt 0:09:09]} Bb4 {[%emt 0:04:21]} 20. Bd2 {[%emt 0:02:37] Strongly threatening Bxb4.} Rb6 {[%emt 0:02:25]} 21. Bxb4 {[%emt 0:04:26]} Rxb4 {[%emt 0:00:33]} 22. b3 {[%emt 0:00:11]} f4 {[%emt 0:03:03]} 23. Rac1 {[%emt 0:11:28]} Bf5 {[%emt 0:02:53]} 24. Qd2 {[%emt 0:00:03]} Rxb3 {[%emt 0:03:04]} 25. Qxf4 {[%emt 0:00:27]} Rb4 {[%emt 0:01:21]} (25... Bd7 $5 26. Qd2 $8 Bxa4 $15) 26. Rc5 {[%emt 0:02:40]} Rxa4 {[%emt 0:01:36]} 27. Rec1 {[%emt 0:00:06] [#]} (27. Qd2 $11 {keeps the balance.}) 27... Rb4 {[%emt 0:02:12]} ({Better is} 27... Ra3 $1 $17) 28. Qd2 $11 {[%emt 0:01:57]} h6 {[%emt 0:08:47]} 29. Qa2 $2 {[%emt 0:03:23]} (29. h3 $11) 29... Rxd4 {[%emt 0:02:05] ...Qd6 is the strong threat.} 30. Rxa5 $2 {[%emt 0:00:03] [#]} (30. Nf3 Rf4 31. Rxd5) 30... Qc7 $3 {[%emt 0:02:15][%mdl 576] Double Attack. An entertaining game by Arabidze.   Weighted Error Value: White=0.52/Black=0.13 (very precise)} 0-1